bitfinex/quotes_BTCUSD_20250826
["timestamp","ask_amount","ask_price","bid_price","bid_amount"]
[1756220844518,0.18070112,110680.0,110670.0,0.34374946]
[1756220844726,0.18070112,110680.0,110670.0,0.52146946]
[1756220844937,0.18070112,110680.0,110670.0,0.34075202]
[1756220845182,0.18070112,110680.0,110670.0,0.34381202]
[1756220845613,0.18070112,110680.0,110670.0,0.16609202]
[1756220845831,0.18070112,110680.0,110670.0,0.34373202]
[1756220846044,0.18070112,110680.0,110670.0,0.34473202]
[1756220846294,0.18970189,110700.0,110680.0,0.18070112]
[1756220846504,0.18068479,110690.0,110680.0,0.00306]
[1756220846721,0.18068479,110690.0,110680.0,0.36108112]
[1756220846949,0.18068479,110690.0,110680.0,0.27389202]
[1756220848005,0.18068479,110690.0,110680.0,0.45459314]
[1756220848465,0.18068479,110690.0,110680.0,0.45659314]
[1756220848699,0.18068479,110690.0,110680.0,0.27589202]
[1756220848940,0.18068479,110690.0,110680.0,0.09857202]
[1756220849145,0.18151479,110690.0,110680.0,0.31136783]
[1756220849327,0.18068479,110690.0,110680.0,0.31647783]
[1756220849771,0.18068479,110690.0,110680.0,0.31747783]
[1756220851144,0.18151479,110690.0,110680.0,0.31747783]
[1756220851342,0.18151479,110690.0,110680.0,0.14023783]
[1756220851540,0.18151479,110690.0,110680.0,0.27102202]
[1756220851740,0.18151479,110690.0,110680.0,0.17944]
[1756220852350,0.18068479,110690.0,110680.0,0.18455]
[1756220852520,0.18068479,110690.0,110680.0,0.18355]
[1756220852737,0.18068479,110690.0,110680.0,0.183295]
[1756220852981,0.18068479,110690.0,110680.0,0.27575702]
[1756220853179,0.13041067,110700.0,110680.0,0.49793824]
[1756220853410,0.13041067,110700.0,110690.0,0.00225855]
[1756220853613,0.13041067,110700.0,110690.0,0.00736855]
[1756220854066,0.18065215,110710.0,110690.0,0.28177391]
[1756220854280,0.18065215,110710.0,110700.0,0.33702202]
[1756220854475,0.18065215,110710.0,110700.0,0.34213202]
[1756220855358,0.18148215,110710.0,110700.0,0.33602202]
[1756220855567,0.18195654,110710.0,110700.0,0.34113202]
[1756220856293,0.18195654,110710.0,110700.0,0.16505202]
[1756220856530,0.18295654,110710.0,110700.0,0.34097202]
[1756220857575,0.18212654,110710.0,110700.0,0.34097202]
[1756220858872,0.18212654,110710.0,110700.0,0.16505202]
[1756220859057,0.18195654,110710.0,110700.0,0.15994202]
[1756220859255,0.18195654,110710.0,110700.0,0.33554202]
[1756220859523,0.18195654,110710.0,110700.0,0.33550202]
[1756220859693,0.18195654,110710.0,110700.0,0.16094202]
[1756220859901,0.18195654,110710.0,110700.0,0.33650202]
[1756220861372,0.00130439,110710.0,110700.0,0.33650202]
[1756220861588,0.18198459,110710.0,110700.0,0.33650202]
[1756220862199,0.18198459,110710.0,110700.0,0.33975202]
[1756220862383,0.18198459,110710.0,110700.0,0.34182202]
[1756220863372,0.18115459,110710.0,110700.0,0.52249049]
[1756220864562,0.00047439,110710.0,110700.0,0.52249049]
[1756220864783,0.18112654,110710.0,110700.0,0.52249049]
[1756220865616,0.18112654,110710.0,110700.0,0.52133049]
[1756220869179,0.18112654,110710.0,110700.0,0.34066202]
[1756220869390,0.18112654,110710.0,110700.0,0.34030202]
[1756220869810,0.18112654,110710.0,110700.0,0.34010202]
[1756220870456,0.18112654,110710.0,110700.0,0.16626202]
[1756220870664,0.18195654,110710.0,110700.0,0.34010202]
[1756220871059,0.18195654,110710.0,110700.0,0.16094202]
[1756220871266,0.18195654,110710.0,110700.0,0.33466202]
[1756220871674,0.18195654,110710.0,110700.0,0.33458202]
[1756220872086,0.18195654,110710.0,110700.0,0.07048]
[1756220872541,0.19093593,110710.0,110700.0,0.24396]
[1756220872760,0.21042554,110710.0,110700.0,0.17448]
[1756220873396,0.21042554,110710.0,110700.0,0.17348]
[1756220873613,0.21090554,110710.0,110700.0,0.17348]
[1756220874250,0.19141593,110710.0,110700.0,0.17348]
[1756220875094,0.18068479,110690.0,110680.0,0.07273]
[1756220875335,0.18068479,110690.0,110680.0,0.33942202]
[1756220875519,0.18151479,110690.0,110680.0,0.16626202]
[1756220875723,0.18068479,110690.0,110680.0,0.33934202]
[1756220876336,0.18151479,110690.0,110680.0,0.16626202]
[1756220876539,0.18151479,110690.0,110680.0,0.24769]
[1756220876767,0.18151479,110690.0,110680.0,0.2464]
[1756220877612,0.18151479,110690.0,110680.0,0.25172]
[1756220877826,0.18068479,110690.0,110680.0,0.25172]
[1756220879944,0.18068479,110690.0,110680.0,0.24872]
[1756220880171,0.18151479,110690.0,110680.0,0.24872]
[1756220880413,0.18068479,110690.0,110680.0,0.24916]
[1756220881249,0.18068479,110690.0,110680.0,0.52132314]
[1756220881463,0.18068479,110690.0,110680.0,0.34062202]
[1756220882364,0.18151479,110690.0,110680.0,0.07473]
[1756220882578,0.18151479,110690.0,110680.0,0.24376]
[1756220882781,0.18151479,110690.0,110680.0,0.24908]
[1756220882980,0.18068479,110690.0,110680.0,0.24908]
[1756220883594,0.19147168,110690.0,110680.0,0.24908]
[1756220883811,0.19064168,110690.0,110680.0,0.24908]
[1756220884291,0.18068479,110690.0,110680.0,0.24908]
[1756220884502,0.18068479,110690.0,110680.0,0.24912]
[1756220885628,0.18068479,110690.0,110680.0,0.52128314]
[1756220885866,0.18068318,110700.0,110680.0,0.97098012]
[1756220886110,0.19015914,110710.0,110690.0,0.72735234]
[1756220886334,0.19015914,110710.0,110700.0,0.17196]
[1756220886560,0.19015914,110710.0,110700.0,0.27100037]
[1756220886793,0.19015914,110710.0,110700.0,0.45929362]
[1756220887061,0.00047439,110710.0,110700.0,0.45929362]
[1756220887297,0.00047439,110710.0,110700.0,0.9089906]
[1756220887528,0.18312654,110710.0,110700.0,0.45929362]
[1756220888227,0.18312654,110710.0,110700.0,0.44941049]
[1756220889746,0.18312654,110710.0,110700.0,0.45041049]
[1756220889969,0.00247439,110710.0,110700.0,0.8892679]
[1756220890604,0.00047439,110710.0,110700.0,0.8892679]
[1756220891047,0.00047439,110710.0,110700.0,0.8902679]
[1756220891259,0.00047439,110710.0,110700.0,0.45141049]
[1756220893179,0.00047439,110710.0,110700.0,0.79141049]
[1756220893830,0.00047439,110710.0,110700.0,1.2302679]
[1756220897243,0.00047439,110710.0,110700.0,1.2574199]
[1756220897473,0.00047439,110710.0,110700.0,1.2564199]
[1756220897685,0.00047439,110710.0,110700.0,1.0844599]
[1756220897905,0.00047439,110710.0,110700.0,1.2593799]
[1756220898132,0.00047439,110710.0,110700.0,0.81952249]
[1756220898401,0.00047439,110710.0,110700.0,1.2583799]
[1756220898868,0.00047439,110710.0,110700.0,1.2553799]
[1756220899881,0.00047439,110710.0,110700.0,1.2603799]
[1756220900324,0.00047439,110710.0,110700.0,0.81952249]
[1756220900518,0.00047439,110710.0,110700.0,0.81948249]
[1756220900756,0.00047439,110710.0,110700.0,0.82248249]
[1756220901340,0.00047439,110710.0,110700.0,1.2613399]
[1756220901546,0.00047439,110710.0,110700.0,0.82248249]
[1756220903237,0.00047439,110710.0,110700.0,0.65060249]
[1756220903652,0.00047439,110710.0,110700.0,1.2613399]
[1756220903853,0.00047439,110710.0,110700.0,1.0894599]
[1756220904066,0.00047439,110710.0,110700.0,1.2613399]
[1756220905624,0.18063597,110720.0,110710.0,0.34]
[1756220905861,0.18063597,110720.0,110710.0,0.50094202]
[1756220906129,0.16874355,110730.0,110710.0,0.68670417]
[1756220906362,0.16888584,110730.0,110720.0,0.17409794]
[1756220906845,0.18147742,110730.0,110720.0,0.45130579]
[1756220907054,0.18967839,110730.0,110720.0,0.44904785]
[1756220907316,0.19050839,110730.0,110720.0,0.09146202]
[1756220907589,0.19050839,110730.0,110720.0,0.26555996]
[1756220907856,0.19050839,110730.0,110720.0,0.30418105]
[1756220908064,0.19050839,110730.0,110720.0,0.48481688]
[1756220908274,0.19050839,110730.0,110720.0,0.49192688]
[1756220908494,0.19050839,110730.0,110720.0,0.31129105]
[1756220908671,0.19050839,110730.0,110720.0,0.49192688]
[1756220908828,0.19050839,110730.0,110720.0,0.31129105]
[1756220909041,0.19050839,110730.0,110720.0,0.30618105]
[1756220910044,0.19050839,110730.0,110720.0,0.13434105]
[1756220910254,0.19050839,110730.0,110720.0,0.30618105]
[1756220911681,0.18967839,110730.0,110720.0,0.49192688]
[1756220911885,0.1654063,110740.0,110720.0,0.49192688]
[1756220912092,0.18972472,110750.0,110730.0,0.27738928]
[1756220912326,0.18060321,110740.0,110730.0,0.27513154]
[1756220912519,0.18060321,110740.0,110730.0,0.51851154]
[1756220913885,0.18972472,110750.0,110740.0,0.18060321]
[1756220914096,0.18972472,110750.0,110740.0,0.27737277]
[1756220914299,0.18972472,110750.0,110740.0,0.27717523]
[1756220914533,0.19055472,110750.0,110740.0,0.09657202]
[1756220914741,0.19255472,110750.0,110740.0,0.09371956]
[1756220914945,0.19255472,110750.0,110740.0,0.09882956]
[1756220915156,0.1805869,110750.0,110740.0,0.27943277]
[1756220915364,0.1805869,110750.0,110740.0,0.27717523]
[1756220915572,0.1825869,110750.0,110740.0,0.27717523]
[1756220915790,0.1825869,110750.0,110740.0,0.09657202]
[1756220916004,0.1825869,110750.0,110740.0,0.09882956]
[1756220916212,0.1825869,110750.0,110740.0,0.27943277]
[1756220916420,0.1825869,110750.0,110740.0,0.27717523]
[1756220917065,0.1805869,110750.0,110740.0,0.287047]
[1756220917855,0.1805869,110750.0,110740.0,0.288047]
[1756220918696,0.18064532,110760.0,110740.0,0.288047]
[1756220918897,0.18064532,110760.0,110750.0,0.44904625]
[1756220919101,0.18064532,110760.0,110750.0,0.44881892]
[1756220919764,0.18064532,110760.0,110750.0,0.26823202]
[1756220921568,0.18147532,110760.0,110750.0,0.09146202]
[1756220921803,0.18147532,110760.0,110750.0,0.26819202]
[1756220922016,0.18147532,110760.0,110750.0,0.26919202]
[1756220922222,0.18147532,110760.0,110750.0,0.26422202]
[1756220923612,0.18064532,110760.0,110750.0,0.26919202]
[1756220923848,0.18147532,110760.0,110750.0,0.26919202]
[1756220924303,0.18064532,110760.0,110750.0,0.44977892]
[1756220924532,0.18147532,110760.0,110750.0,0.26919202]
[1756220925410,0.18147532,110760.0,110750.0,0.26862311]
[1756220925836,0.18064532,110760.0,110750.0,0.44921001]
[1756220926478,0.18064532,110760.0,110750.0,0.26862311]
[1756220927690,0.18064532,110760.0,110750.0,0.44921001]
[1756220928292,0.18064532,110760.0,110750.0,0.26862311]
[1756220928897,0.18064532,110760.0,110750.0,0.44921001]
[1756220929101,0.18064532,110760.0,110750.0,0.26862311]
[1756220931706,0.18064532,110760.0,110750.0,0.44921001]
[1756220932551,0.18970313,110770.0,110750.0,0.44921001]
[1756220932765,0.18970313,110770.0,110760.0,0.07463713]
[1756220932766,0.19829854,110770.0,110760.0,0.07463713]
[1756220932970,0.19829854,110770.0,110760.0,0.34869975]
[1756220932971,0.00859541,110770.0,110760.0,0.34869975]
[1756220933372,0.18069659,110770.0,110760.0,0.34644262]
[1756220934106,0.18269659,110770.0,110760.0,0.34644262]
[1756220934510,0.18269659,110770.0,110760.0,0.16587202]
[1756220934709,0.22130485,110770.0,110760.0,0.24112]
[1756220934927,0.22975786,110770.0,110760.0,0.24112]
[1756220935329,0.1924996,110770.0,110760.0,0.24112]
[1756220936012,0.21198,110770.0,110760.0,0.06944]
[1756220936263,0.21198,110770.0,110760.0,0.2432]
[1756220937050,0.21198,110770.0,110760.0,0.06944]
[1756220937277,0.57056088,110770.0,110760.0,0.243]
[1756220937509,0.5769047,110770.0,110760.0,0.244]
[1756220937721,0.5749047,110770.0,110760.0,0.244]
[1756220937925,0.18060321,110740.0,110730.0,0.00294]
[1756220938116,0.18061952,110730.0,110720.0,0.4154596]
[1756220938327,0.18061952,110730.0,110720.0,0.75183162]
[1756220938442,0.18061952,110730.0,110720.0,0.93246745]
[1756220939303,0.18061952,110730.0,110720.0,0.93260974]
[1756220939519,0.18061952,110730.0,110720.0,0.93460974]
[1756220939720,0.18061952,110730.0,110720.0,0.94415206]
[1756220940331,0.18061952,110730.0,110720.0,0.24053391]
[1756220940543,0.18061952,110730.0,110720.0,0.41397391]
[1756220940941,0.18061952,110730.0,110720.0,0.16801431]
[1756220941140,0.18144952,110730.0,110720.0,0.24462229]
[1756220942195,0.18144952,110730.0,110720.0,0.24662229]
[1756220942653,0.18144952,110730.0,110720.0,0.24462229]
[1756220942861,0.18196952,110730.0,110720.0,0.24462229]
[1756220943088,0.18196952,110730.0,110720.0,0.24662229]
[1756220943501,0.14994952,110730.0,110720.0,0.24662229]
[1756220944773,0.14994952,110730.0,110720.0,0.24956229]
[1756220945001,0.14911952,110730.0,110720.0,0.25159229]
[1756220947143,0.18339397,110730.0,110720.0,0.24662229]
[1756220947336,0.14994952,110730.0,110720.0,0.24662229]
[1756220948254,0.14994952,110730.0,110720.0,0.07358229]
[1756220948497,0.14994952,110730.0,110720.0,0.24662229]
[1756220948700,0.49046952,110730.0,110720.0,0.07358229]
[1756220948913,0.66696001,110730.0,110720.0,0.17714229]
[1756220949117,0.66696001,110730.0,110720.0,0.00414229]
[1756220949320,0.67328972,110730.0,110720.0,0.17710229]
[1756220949522,0.67328972,110730.0,110720.0,0.17610229]
[1756220949789,0.52065215,110710.0,110700.0,0.06944]
[1756220950013,0.18068479,110690.0,110680.0,0.1449896]
[1756220950234,0.18151479,110690.0,110680.0,0.1420396]
[1756220950461,0.18151479,110690.0,110680.0,0.24244]
[1756220950713,0.18151479,110690.0,110680.0,0.24751]
[1756220950923,0.18068479,110690.0,110680.0,0.24751]
[1756220951127,0.18068479,110690.0,110680.0,0.17803]
[1756220951334,0.18151479,110690.0,110680.0,0.17343439]
[1756220952078,0.1911607,110690.0,110680.0,0.17343439]
[1756220952281,0.1911607,110690.0,110680.0,0.00051439]
[1756220952484,0.1911607,110690.0,110680.0,0.17367439]
[1756220952713,0.1916807,110690.0,110680.0,0.17363439]
[1756220952910,0.1916807,110690.0,110680.0,0.00051439]
[1756220953110,0.5311607,110690.0,110680.0,0.00051439]
[1756220953337,0.5316807,110690.0,110680.0,0.00151439]
[1756220953538,0.5311607,110690.0,110680.0,0.00151439]
[1756220953737,0.60291706,110690.0,110680.0,0.00151439]
[1756220953956,0.60239706,110690.0,110680.0,0.00151439]
[1756220954155,0.60339706,110690.0,110680.0,0.00151439]
[1756220954911,0.7128281,110690.0,110680.0,0.00151439]
[1756220955357,0.7128281,110690.0,110680.0,0.00251439]
[1756220955560,0.7123081,110690.0,110680.0,0.00251439]
[1756220956214,0.64107174,110690.0,110680.0,0.00251439]
[1756220958387,0.5321607,110690.0,110680.0,0.00463439]
[1756220958567,0.5321607,110690.0,110680.0,0.00251439]
[1756220958814,0.01744902,110670.0,110660.0,4e-05]
[1756220959037,0.75409627,110670.0,110660.0,4e-05]
[1756220959217,0.67302829,110670.0,110660.0,4e-05]
[1756220959447,0.84690829,110670.0,110660.0,4e-05]
[1756220959652,0.86626939,110670.0,110660.0,4e-05]
[1756220959868,1.31626939,110670.0,110660.0,4e-05]
[1756220960075,1.06626939,110670.0,110660.0,4e-05]
[1756220960294,1.31726939,110670.0,110660.0,4e-05]
[1756220960496,1.32126939,110670.0,110660.0,4e-05]
[1756220961806,1.34454609,110670.0,110660.0,4e-05]
[1756220962218,1.34654609,110670.0,110660.0,4e-05]
[1756220963349,1.34024118,110670.0,110660.0,4e-05]
[1756220963553,1.34653793,110670.0,110660.0,4e-05]
[1756220964414,1.37905534,110670.0,110660.0,4e-05]
[1756220965144,1.40623534,110670.0,110660.0,4e-05]
[1756220965721,1.39035348,110670.0,110660.0,4e-05]
[1756220965922,1.14035348,110670.0,110660.0,4e-05]
[1756220966130,0.18076644,110640.0,110630.0,0.24671]
[1756220966334,0.18706319,110640.0,110630.0,0.24883]
[1756220967317,0.18706319,110640.0,110630.0,0.24897229]
[1756220968760,0.19687993,110640.0,110630.0,0.24897229]
[1756220968989,0.19687993,110640.0,110630.0,0.24997229]
[1756220969433,0.19687993,110640.0,110630.0,0.18049229]
[1756220970074,0.19688412,110640.0,110630.0,0.18049229]
[1756220970912,0.19688412,110640.0,110630.0,0.18053229]
[1756220973343,0.19058318,110640.0,110630.0,0.18053229]
[1756220973588,0.19688759,110640.0,110630.0,0.00665229]
[1756220973782,0.18707085,110640.0,110630.0,0.00665229]
[1756220974162,0.18707299,110640.0,110630.0,0.00665229]
[1756220974500,0.19669329,110640.0,110630.0,0.00665229]
[1756220974700,0.18707299,110640.0,110630.0,0.00665229]
[1756220975312,0.23367927,110640.0,110630.0,0.00665229]
[1756220975513,0.1968955,110640.0,110630.0,0.00665229]
[1756220975714,0.20161726,110640.0,110630.0,0.00665229]
[1756220976244,0.22101365,110640.0,110630.0,0.00665229]
[1756220978057,0.21119114,110640.0,110630.0,0.00665229]
[1756220978304,0.21119114,110640.0,110630.0,0.81390241]
[1756220978513,0.19179475,110640.0,110630.0,0.18069229]
[1756220978728,0.19179475,110640.0,110630.0,0.18295207]
[1756220978933,0.1854882,110640.0,110630.0,0.36373485]
[1756220979198,0.1854882,110640.0,110630.0,0.36147507]
[1756220979403,0.1854882,110640.0,110630.0,0.90310465]
[1756220979834,0.1854882,110640.0,110630.0,0.27215431]
[1756220980270,0.18076644,110640.0,110630.0,0.27215431]
[1756220980492,0.18076644,110640.0,110630.0,0.09811431]
[1756220980717,0.18076644,110640.0,110630.0,0.00665229]
[1756220980930,0.20655323,110640.0,110630.0,0.18053229]
[1756220981148,0.20738323,110640.0,110630.0,0.18045229]
[1756220981383,0.20738323,110640.0,110630.0,0.00158229]
[1756220981606,0.23156071,110640.0,110630.0,0.17530229]
[1756220981811,0.23156071,110640.0,110630.0,0.00158229]
[1756220982071,0.2943879,110640.0,110630.0,0.00158229]
[1756220982272,0.23156071,110640.0,110630.0,0.00158229]
[1756220982699,0.26407812,110640.0,110630.0,0.00158229]
[1756220982894,0.00876693,110640.0,110630.0,0.00158229]
[1756220983122,0.21371085,110640.0,110630.0,0.00158229]
[1756220983327,0.20737796,110640.0,110630.0,0.00158229]
[1756220983528,0.21371889,110640.0,110630.0,0.00158229]
[1756220984019,0.72372493,110640.0,110630.0,0.00158229]
[1756220984226,0.7685939,110640.0,110630.0,0.00158229]
[1756220984651,0.74103957,110640.0,110630.0,0.00158229]
[1756220984866,0.82967119,110640.0,110630.0,1e-08]
[1756220985101,0.52079913,110620.0,110610.0,0.0004]
[1756220985299,0.82455006,110620.0,110610.0,0.00044747]
[1756220985514,0.83383404,110620.0,110610.0,0.00044747]
[1756220985744,0.83383404,110620.0,110600.0,0.00044]
[1756220985745,0.85180306,110620.0,110600.0,0.00044]
[1756220985976,0.29662793,110610.0,110600.0,0.00058242]
[1756220986201,0.64296886,110610.0,110600.0,0.00058242]
[1756220986422,0.76133071,110610.0,110600.0,0.00058242]
[1756220987272,0.66936542,110610.0,110600.0,0.00058242]
[1756220987711,0.84280542,110610.0,110600.0,0.00058242]
[1756220987926,0.67036542,110610.0,110600.0,0.00058242]
[1756220988147,0.8284864,110610.0,110600.0,0.00568242]
[1756220988377,0.6550864,110610.0,110600.0,0.00568242]
[1756220988583,0.8293164,110610.0,110600.0,0.00568242]
[1756220988811,0.86913997,110610.0,110600.0,0.00058242]
[1756220989032,0.83403816,110610.0,110600.0,0.00058242]
[1756220989246,0.65980816,110610.0,110600.0,0.00568242]
[1756220989454,0.76703716,110610.0,110600.0,0.00568242]
[1756220989955,0.59267716,110610.0,110600.0,0.00568242]
[1756220990180,0.56103918,110610.0,110600.0,0.00568242]
[1756220990391,0.56020918,110610.0,110600.0,0.00568242]
[1756220991687,0.53587816,110610.0,110600.0,0.00568242]
[1756220992958,0.56020918,110610.0,110600.0,0.00568242]
[1756220993175,0.56103918,110610.0,110600.0,0.00568242]
[1756220993405,0.65247133,110610.0,110600.0,0.00058242]
[1756220993867,0.6477663,110610.0,110600.0,0.00058242]
[1756220994289,0.66521532,110610.0,110600.0,0.00058242]
[1756220994503,0.6982033,110610.0,110600.0,1e-08]
[1756220994939,0.69330705,110610.0,110600.0,1e-08]
[1756220995150,0.7175962,110610.0,110600.0,1e-08]
[1756220995394,0.83345432,110610.0,110600.0,1e-08]
[1756220996025,1.05098634,110610.0,110600.0,1e-08]
[1756220996585,1.05048634,110610.0,110600.0,1e-08]
[1756220997019,6.00772934,110610.0,110600.0,1e-08]
[1756220997289,6.01035534,110610.0,110600.0,1e-08]
[1756220997479,6.18187534,110610.0,110600.0,1e-08]
[1756220997683,6.18387534,110610.0,110600.0,1e-08]
[1756220997988,6.18687534,110610.0,110600.0,1e-08]
[1756220998524,5.92091005,110610.0,110600.0,1e-08]
[1756220998744,6.10930154,110610.0,110600.0,1e-08]
[1756220998954,6.1507427,110610.0,110600.0,1e-08]
[1756220999937,6.1505827,110610.0,110600.0,1e-08]
[1756221000145,1.1928597,110610.0,110600.0,1e-08]
[1756221000373,1.28430499,110610.0,110600.0,1e-08]
[1756221000593,0.52084817,110590.0,110580.0,0.0004]
[1756221000806,0.72065073,110590.0,110580.0,0.00054231]
[1756221001250,0.72065073,110590.0,110580.0,0.00265231]
[1756221001675,0.54661073,110590.0,110580.0,0.00265231]
[1756221001886,0.72077073,110590.0,110580.0,0.00265231]
[1756221002121,0.71444294,110590.0,110580.0,0.00265231]
[1756221002347,0.71444294,110590.0,110580.0,0.00565231]
[1756221002803,0.20028294,110590.0,110580.0,0.00864231]
[1756221003061,0.18084817,110590.0,110580.0,0.01090311]
[1756221003281,0.18084641,110600.0,110580.0,0.72298945]
[1756221003498,0.18084817,110590.0,110580.0,0.27797886]
[1756221003714,0.18084817,110590.0,110580.0,0.09711433]
[1756221003953,0.18084817,110590.0,110580.0,0.09937513]
[1756221004156,0.18084817,110590.0,110580.0,0.28022966]
[1756221004370,0.18084817,110590.0,110580.0,0.27796886]
[1756221004577,0.18084817,110590.0,110580.0,0.28196886]
[1756221004796,0.18084641,110600.0,110580.0,0.89608865]
[1756221005004,0.18084641,110600.0,110590.0,0.00299]
[1756221005440,0.18084641,110600.0,110590.0,0.0073606]
[1756221005924,0.18084641,110600.0,110590.0,0.18820877]
[1756221006172,0.18935624,110610.0,110590.0,0.3878443]
[1756221006393,0.18935624,110610.0,110600.0,0.00299]
[1756221006619,0.18935624,110610.0,110600.0,0.0051]
[1756221006846,0.18079913,110620.0,110600.0,0.27965423]
[1756221007069,0.18079913,110620.0,110610.0,0.00532019]
[1756221007291,0.18079913,110620.0,110610.0,0.00734019]
[1756221008350,0.18079913,110620.0,110610.0,0.09880221]
[1756221008554,0.18079913,110620.0,110610.0,0.09654202]
[1756221008769,0.18283913,110620.0,110610.0,0.00608]
[1756221009208,0.18079913,110620.0,110610.0,0.00608]
[1756221010062,0.18283913,110620.0,110610.0,0.00608]
[1756221010271,0.18483913,110620.0,110610.0,0.00608]
[1756221010467,0.18260514,110620.0,110610.0,0.00608]
[1756221010670,0.18056514,110620.0,110610.0,0.00608]
[1756221011848,0.18260514,110620.0,110610.0,0.00608]
[1756221012076,0.18056514,110620.0,110610.0,0.00608]
[1756221012307,0.18260514,110620.0,110610.0,0.00608]
[1756221012716,0.18260514,110620.0,110610.0,0.00104]
[1756221012945,0.18260514,110620.0,110610.0,0.00306]
[1756221013378,0.18260514,110620.0,110610.0,0.00612]
[1756221013834,0.18056514,110620.0,110610.0,0.00612]
[1756221014291,0.18056514,110620.0,110610.0,0.18693547]
[1756221014520,0.18056514,110620.0,110610.0,0.27839749]
[1756221014766,0.002,110620.0,110610.0,0.27839749]
[1756221015010,0.002,110620.0,110610.0,0.71815728]
[1756221015688,0.002,110620.0,110610.0,0.27839749]
[1756221016109,0.18078408,110630.0,110620.0,0.18079913]
[1756221016328,0.18078408,110630.0,110620.0,0.52228113]
[1756221016560,0.18078408,110630.0,110620.0,0.52002115]
[1756221016774,0.18078278,110630.0,110620.0,0.52002115]
[1756221017216,0.18078278,110630.0,110620.0,0.33922202]
[1756221017446,0.18078278,110630.0,110620.0,0.33894202]
[1756221018757,0.18078278,110630.0,110620.0,0.33994202]
[1756221018980,0.18078278,110630.0,110620.0,0.38108206]
[1756221019841,0.18078278,110630.0,110620.0,0.38308206]
[1756221020037,0.18078278,110630.0,110620.0,0.21024206]
[1756221020346,0.18282278,110630.0,110620.0,0.16402202]
[1756221020568,0.18282278,110630.0,110620.0,0.24512]
[1756221020803,0.18282278,110630.0,110620.0,0.24508]
[1756221021493,0.18078278,110630.0,110620.0,0.25016]
[1756221021948,0.18078278,110630.0,110620.0,0.24916]
[1756221022612,0.18550454,110630.0,110620.0,0.24716]
[1756221023049,0.18650454,110630.0,110620.0,0.24716]
[1756221023470,0.18550454,110630.0,110620.0,0.24716]
[1756221023683,0.18754454,110630.0,110620.0,0.07158]
[1756221023921,0.18550454,110630.0,110620.0,0.24804]
[1756221024154,0.18754454,110630.0,110620.0,0.07564]
[1756221024369,0.16593043,110640.0,110620.0,0.24804]
[1756221024552,0.18078278,110630.0,110620.0,0.24904]
[1756221025485,0.18078278,110630.0,110620.0,0.24804]
[1756221026788,0.18276278,110630.0,110620.0,0.24292]
[1756221027860,0.18276278,110630.0,110620.0,0.001]
[1756221028119,0.18276278,110630.0,110620.0,0.002]
[1756221028550,0.18276278,110630.0,110620.0,0.001]
[1756221028778,0.52423278,110630.0,110620.0,0.001]
[1756221029028,0.52523278,110630.0,110620.0,0.001]
[1756221029454,0.52376278,110630.0,110620.0,0.00302]
[1756221029673,0.52078278,110630.0,110620.0,0.00608]
[1756221030119,0.52278278,110630.0,110620.0,0.00508]
[1756221030564,0.18278278,110630.0,110620.0,0.00508]
[1756221030787,0.18278278,110630.0,110620.0,0.00733998]
[1756221031005,0.18478278,110630.0,110620.0,0.00733998]
[1756221031219,0.18278278,110630.0,110620.0,0.14022312]
[1756221031447,0.18278278,110630.0,110620.0,0.098802]
[1756221031711,0.18378278,110630.0,110620.0,0.098802]
[1756221031931,0.18478278,110630.0,110620.0,0.098802]
[1756221032352,0.18378278,110630.0,110620.0,0.098842]
[1756221032768,0.18378278,110630.0,110620.0,0.099842]
[1756221033012,0.18378278,110630.0,110620.0,0.09758202]
[1756221033220,0.18078278,110630.0,110620.0,0.09758202]
[1756221033426,0.18078278,110630.0,110620.0,0.100842]
[1756221034276,0.18078278,110630.0,110620.0,0.09858202]
[1756221034496,0.18276278,110630.0,110620.0,0.00204]
[1756221034702,0.18276278,110630.0,110620.0,0.17436]
[1756221036093,0.18276278,110630.0,110620.0,0.17944]
[1756221036692,0.18078278,110630.0,110620.0,0.17944]
[1756221036904,0.18078278,110630.0,110620.0,0.18169998]
[1756221038093,0.18078278,110630.0,110620.0,0.17944]
[1756221038899,0.18276278,110630.0,110620.0,0.17436]
[1756221039099,0.18276278,110630.0,110620.0,0.00204]
[1756221039334,0.18276278,110630.0,110620.0,0.17436]
[1756221040856,0.18276278,110630.0,110620.0,0.00204]
[1756221041275,0.53059184,110630.0,110620.0,0.00204]
[1756221041455,0.53059184,110630.0,110620.0,0.00104]
[1756221041894,0.53159184,110630.0,110620.0,4e-05]
[1756221042545,0.66003589,110630.0,110620.0,4e-05]
[1756221042763,0.66215454,110630.0,110620.0,4e-05]
[1756221042975,0.66851304,110630.0,110620.0,4e-05]
[1756221043260,0.75995833,110630.0,110620.0,4e-05]
[1756221043477,0.69282303,110630.0,110620.0,4e-05]
[1756221043690,0.6928233,110630.0,110620.0,4e-05]
[1756221044823,0.6918233,110630.0,110620.0,4e-05]
[1756221045044,0.6938233,110630.0,110620.0,4e-05]
[1756221045673,0.6948233,110630.0,110620.0,4e-05]
[1756221045940,0.78926859,110630.0,110620.0,4e-05]
[1756221046153,0.78826859,110630.0,110620.0,4e-05]
[1756221046580,0.82268205,110630.0,110620.0,4e-05]
[1756221046829,0.73486176,110630.0,110620.0,4e-05]
[1756221047086,0.88887605,110630.0,110620.0,4e-05]
[1756221049517,0.88883863,110630.0,110620.0,4e-05]
[1756221049730,0.71655863,110630.0,110620.0,4e-05]
[1756221049934,0.86452854,110630.0,110620.0,4e-05]
[1756221050138,0.86301854,110630.0,110620.0,4e-05]
[1756221050547,0.91433208,110630.0,110620.0,4e-05]
[1756221051175,0.91580208,110630.0,110620.0,4e-05]
[1756221052154,0.86301854,110630.0,110620.0,4e-05]
[1756221052753,0.3313403,110630.0,110620.0,0.00215]
[1756221052959,0.20193053,110630.0,110620.0,0.00523]
[1756221053164,0.18778278,110630.0,110620.0,0.00523]
[1756221053809,0.52778278,110630.0,110620.0,0.00523]
[1756221054933,0.52578278,110630.0,110620.0,0.00523]
[1756221055348,0.52678278,110630.0,110620.0,0.00523]
[1756221055551,0.52178278,110630.0,110620.0,0.00523]
[1756221055753,0.52078278,110630.0,110620.0,0.00523]
[1756221056321,0.53492799,110630.0,110620.0,0.00523]
[1756221057122,0.19492799,110630.0,110620.0,0.00748998]
[1756221057329,0.19592799,110630.0,110620.0,0.18928911]
[1756221057545,0.19592799,110630.0,110620.0,0.00623]
[1756221057938,0.18178278,110630.0,110620.0,0.00623]
[1756221059497,0.18078278,110630.0,110620.0,0.00723]
[1756221059701,0.18078278,110630.0,110620.0,0.00823]
[1756221060340,0.18276278,110630.0,110620.0,0.00304]
[1756221060977,0.52276278,110630.0,110620.0,0.00304]
[1756221061440,0.6142248,110630.0,110620.0,0.00304]
[1756221061676,0.6142248,110630.0,110620.0,0.00204]
[1756221061896,0.52078278,110630.0,110620.0,0.00723]
[1756221062765,0.52276278,110630.0,110620.0,0.00415]